{"text_format":"3","workbook":"xlsx","n_sheets":1,"sheets":["Piedāvājums"],"not_rendered":{"images":1,"defined_names":20},"read":"whole","date_system":"1900"}

{"sheet":"Piedāvājums","index":0,"n_rows":39,"n_cols":7,"rows_kept":39,"merged":[[0,1,3,1],[0,3,0,6],[1,4,1,6],[2,4,2,6],[32,3,35,4],[36,3,36,6],[37,3,37,5],[38,3,38,5]]}
[{"$nulls":3},"BŪVNIECĪBAS PIEDĀVĀJUMS"]
[{"$nulls":3},"Uzņēmuma nosaukums","| Šajā šūnā ievadiet uzņēmuma ielu un mājas nr."]
[{"$nulls":3},"Tālrunis","| Šajā šūnā ievadiet uzņēmuma faksa numuru un kontaktpersonas e-pasta adresi"]
[{"$nulls":3},"DAUDZUMS","APRAKSTS","VIENĪBAS CENA","SUMMA"]
[null,"KLIENTS",null,10,"1. prece",{"v":165,"d":"165.00 EUR"},{"$f":"IFERROR(Rindiņas_vienumi[[#This Row],[DAUDZUMS]]*Rindiņas_vienumi[[#This Row],[VIENĪBAS CENA]], \"\")","v":{"v":1650,"d":"1,650.00 EUR"}}]
[null,"Šajā šūnā ievadiet klienta vārdu un uzvārdu",null,21,"2. vienums",{"v":40,"d":"40.00 EUR"},{"$f":"IFERROR(Rindiņas_vienumi[[#This Row],[DAUDZUMS]]*Rindiņas_vienumi[[#This Row],[VIENĪBAS CENA]], \"\")","v":{"v":840,"d":"840.00 EUR"}}]
[null,"TĀMES NR",null,5,"3. vienums",{"v":10.5,"d":"10.50 EUR"},{"$f":"IFERROR(Rindiņas_vienumi[[#This Row],[DAUDZUMS]]*Rindiņas_vienumi[[#This Row],[VIENĪBAS CENA]], \"\")","v":{"v":52.5,"d":"52.50 EUR"}}]
[null,"C-1234",null,164,"4. prece",{"v":2.75,"d":"2.75 EUR"},{"$f":"IFERROR(Rindiņas_vienumi[[#This Row],[DAUDZUMS]]*Rindiņas_vienumi[[#This Row],[VIENĪBAS CENA]], \"\")","v":{"v":451,"d":"451.00 EUR"}}]
[null,"DATUMS",null,6,"5. prece",{"v":12,"d":"12.00 EUR"},{"$f":"IFERROR(Rindiņas_vienumi[[#This Row],[DAUDZUMS]]*Rindiņas_vienumi[[#This Row],[VIENĪBAS CENA]], \"\")","v":{"v":72,"d":"72.00 EUR"}}]
[null,{"$f":"TODAY()","v":"2018-11-16"},null,18,"6. prece",{"v":5.5,"d":"5.50 EUR"},{"$f":"IFERROR(Rindiņas_vienumi[[#This Row],[DAUDZUMS]]*Rindiņas_vienumi[[#This Row],[VIENĪBAS CENA]], \"\")","v":{"v":99,"d":"99.00 EUR"}}]
[null,"ADRESE",null,1,"7. prece",{"v":25,"d":"25.00 EUR"},{"$f":"IFERROR(Rindiņas_vienumi[[#This Row],[DAUDZUMS]]*Rindiņas_vienumi[[#This Row],[VIENĪBAS CENA]], \"\")","v":{"v":25,"d":"25.00 EUR"}}]
[null,"Šajā šūnā ievadiet klienta adresi",{"$nulls":4},{"$f":"IFERROR(Rindiņas_vienumi[[#This Row],[DAUDZUMS]]*Rindiņas_vienumi[[#This Row],[VIENĪBAS CENA]], \"\")","v":{"v":0,"d":"0.00 EUR"}}]
[null,"PILSĒTA/NOVADS/PASTA INDEKSS",{"$nulls":4},{"$f":"IFERROR(Rindiņas_vienumi[[#This Row],[DAUDZUMS]]*Rindiņas_vienumi[[#This Row],[VIENĪBAS CENA]], \"\")","v":{"v":0,"d":"0.00 EUR"}}]
[null,"Šajā šūnā ievadiet klienta pilsētu, novadu un pasta indeksu",{"$nulls":4},{"$f":"IFERROR(Rindiņas_vienumi[[#This Row],[DAUDZUMS]]*Rindiņas_vienumi[[#This Row],[VIENĪBAS CENA]], \"\")","v":{"v":0,"d":"0.00 EUR"}}]
[null,"TĀLRUNIS",{"$nulls":4},{"$f":"IFERROR(Rindiņas_vienumi[[#This Row],[DAUDZUMS]]*Rindiņas_vienumi[[#This Row],[VIENĪBAS CENA]], \"\")","v":{"v":0,"d":"0.00 EUR"}}]
[null,"Šajā šūnā ievadiet klienta tālruņa numuru",{"$nulls":4},{"$f":"IFERROR(Rindiņas_vienumi[[#This Row],[DAUDZUMS]]*Rindiņas_vienumi[[#This Row],[VIENĪBAS CENA]], \"\")","v":{"v":0,"d":"0.00 EUR"}}]
[null,"E-PASTA",{"$nulls":4},{"$f":"IFERROR(Rindiņas_vienumi[[#This Row],[DAUDZUMS]]*Rindiņas_vienumi[[#This Row],[VIENĪBAS CENA]], \"\")","v":{"v":0,"d":"0.00 EUR"}}]
[null,"Šajā šūnā ievadiet klienta e-pasta adresi",{"$nulls":4},{"$f":"IFERROR(Rindiņas_vienumi[[#This Row],[DAUDZUMS]]*Rindiņas_vienumi[[#This Row],[VIENĪBAS CENA]], \"\")","v":{"v":0,"d":"0.00 EUR"}}]
[null,"PĀRDEVĒJS",{"$nulls":4},{"$f":"IFERROR(Rindiņas_vienumi[[#This Row],[DAUDZUMS]]*Rindiņas_vienumi[[#This Row],[VIENĪBAS CENA]], \"\")","v":{"v":0,"d":"0.00 EUR"}}]
[null,"Šajā šūnā ievadiet pārdevēja vārdu",{"$nulls":4},{"$f":"IFERROR(Rindiņas_vienumi[[#This Row],[DAUDZUMS]]*Rindiņas_vienumi[[#This Row],[VIENĪBAS CENA]], \"\")","v":{"v":0,"d":"0.00 EUR"}}]
[null,"PROJEKTS",{"$nulls":4},{"$f":"IFERROR(Rindiņas_vienumi[[#This Row],[DAUDZUMS]]*Rindiņas_vienumi[[#This Row],[VIENĪBAS CENA]], \"\")","v":{"v":0,"d":"0.00 EUR"}}]
[null,"Šajā šūnā ievadiet projekta nosaukumu",{"$nulls":4},{"$f":"IFERROR(Rindiņas_vienumi[[#This Row],[DAUDZUMS]]*Rindiņas_vienumi[[#This Row],[VIENĪBAS CENA]], \"\")","v":{"v":0,"d":"0.00 EUR"}}]
[null,"SAGATAVOJA:",{"$nulls":4},{"$f":"IFERROR(Rindiņas_vienumi[[#This Row],[DAUDZUMS]]*Rindiņas_vienumi[[#This Row],[VIENĪBAS CENA]], \"\")","v":{"v":0,"d":"0.00 EUR"}}]
[null,"Šajā šūnā ievadiet sagatavotāja vārdu un uzvārdu",{"$nulls":4},{"$f":"IFERROR(Rindiņas_vienumi[[#This Row],[DAUDZUMS]]*Rindiņas_vienumi[[#This Row],[VIENĪBAS CENA]], \"\")","v":{"v":0,"d":"0.00 EUR"}}]
[null,"UZMANĪBU",{"$nulls":4},{"$f":"IFERROR(Rindiņas_vienumi[[#This Row],[DAUDZUMS]]*Rindiņas_vienumi[[#This Row],[VIENĪBAS CENA]], \"\")","v":{"v":0,"d":"0.00 EUR"}}]
[null,"Šajā šūnā ievadiet piedāvājuma adresāta vārdu un uzvārdu",{"$nulls":4},{"$f":"IFERROR(Rindiņas_vienumi[[#This Row],[DAUDZUMS]]*Rindiņas_vienumi[[#This Row],[VIENĪBAS CENA]], \"\")","v":{"v":0,"d":"0.00 EUR"}}]
[null,"APMAKSAS NOSACĪJUMI",{"$nulls":4},{"$f":"IFERROR(Rindiņas_vienumi[[#This Row],[DAUDZUMS]]*Rindiņas_vienumi[[#This Row],[VIENĪBAS CENA]], \"\")","v":{"v":0,"d":"0.00 EUR"}}]
[null,"Neto 30",{"$nulls":4},{"$f":"IFERROR(Rindiņas_vienumi[[#This Row],[DAUDZUMS]]*Rindiņas_vienumi[[#This Row],[VIENĪBAS CENA]], \"\")","v":{"v":0,"d":"0.00 EUR"}}]
[null,"IZPILDES DATUMS",{"$nulls":4},{"$f":"IFERROR(Rindiņas_vienumi[[#This Row],[DAUDZUMS]]*Rindiņas_vienumi[[#This Row],[VIENĪBAS CENA]], \"\")","v":{"v":0,"d":"0.00 EUR"}}]
[null,{"$f":"TODAY()+30","v":"2018-12-16"},{"$nulls":4},{"$f":"IFERROR(Rindiņas_vienumi[[#This Row],[DAUDZUMS]]*Rindiņas_vienumi[[#This Row],[VIENĪBAS CENA]], \"\")","v":{"v":0,"d":"0.00 EUR"}}]
[{"$nulls":5},"STARPSUMMA",{"$f":"SUBTOTAL(109,Rindiņas_vienumi[SUMMA])","v":{"v":3189.5,"d":"3,189.50 €"}}]
[{"$nulls":3},"ŠAJĀ PIEDĀVĀJUMĀ IETILPST NORĀDĪTIE NOSACĪJUMI:",null,"NODOKĻA LIKME ",{"v":0.0775,"d":"7.75%"}]
[{"$nulls":3},"Ievadiet nosacījumu šeit",null,"PVN ",{"$f":"IFERROR(Starpsumma*Nodokļa_likme, \"\")","v":{"v":247.18625,"d":"247.19 EUR"}}]
[{"$nulls":5},"CITS "]
[{"$nulls":5},"KOPSUMMA",{"$f":"IFERROR(Starpsumma+G33+Cits, \"\")","v":{"v":3436.68625,"d":"3,436.69 EUR"}}]
[]
[{"$nulls":3},"Pierakstieties, lai pieņemtu piedāvājumu:"]
[]
[{"$nulls":3},"Pilnvarotais pārstāvis",null,null,"Datums"]